{"text_format":"3","workbook":"xlsx","n_sheets":3,"sheets":["Liidien tiedot","Ennustettu myynti ","Kuukausit. painotettu ennuste"],"not_rendered":{"charts":1,"defined_names":10},"read":"whole","date_system":"1900"}

{"sheet":"Liidien tiedot","index":0,"n_rows":9,"n_cols":10,"rows_kept":9}
[null,"Yrityksen nimi"]
[null,"Yksityiskohtainen liidien seuranta"]
[null,{"$f":"TODAY()","v":"2022-04-08"}]
[{"$nulls":8},{"$f":"Yrityksen_nimi","v":"Yrityksen nimi"},"LUOTTAMUKSELLINEN"]
[null,"Liidin nimi","Liidin yhteystieto","Liidi \nLähde","Liidi \nAlue","Liidi \nTyyppi","Potentiaalinen mahdollisuus","Mahdollisuus \nmyyntiin","Ennuste \nSulje","Painotettu \nEnnuste"]
[null,"A. Datum Corporation",{"$nulls":3},"Strateginen",{"v":300000,"d":"300,000.00 €"},{"v":0.9,"d":"90%"},"tammikuu",{"$f":"IFERROR(IF(Liidien_tiedot[[#This Row],[Mahdollisuus \nmyyntiin]]<>\"\",Liidien_tiedot[[#This Row],[Mahdollisuus \nmyyntiin]]*Liidien_tiedot[[#This Row],[Potentiaalinen mahdollisuus]],\"\"),\"\")","v":{"v":270000,"d":"270,000.00 €"}}]
[null,"Adventure Works",{"$nulls":3},"Strateginen",{"v":200000,"d":"200,000.00 €"},{"v":0.1,"d":"10%"},"helmikuu",{"$f":"IFERROR(IF(Liidien_tiedot[[#This Row],[Mahdollisuus \nmyyntiin]]<>\"\",Liidien_tiedot[[#This Row],[Mahdollisuus \nmyyntiin]]*Liidien_tiedot[[#This Row],[Potentiaalinen mahdollisuus]],\"\"),\"\")","v":{"v":20000,"d":"20,000.00 €"}}]
[null,"Alpine Ski House",{"$nulls":3},"Taktinen",{"v":100000,"d":"100,000.00 €"},{"v":0.2,"d":"20%"},"maaliskuu",{"$f":"IFERROR(IF(Liidien_tiedot[[#This Row],[Mahdollisuus \nmyyntiin]]<>\"\",Liidien_tiedot[[#This Row],[Mahdollisuus \nmyyntiin]]*Liidien_tiedot[[#This Row],[Potentiaalinen mahdollisuus]],\"\"),\"\")","v":{"v":20000,"d":"20,000.00 €"}}]
[null,"Summa",{"$nulls":4},{"$f":"SUBTOTAL(109,Liidien_tiedot[Potentiaalinen mahdollisuus])","v":{"v":600000,"d":"600,000.00 €"}},null,null,{"$f":"SUBTOTAL(109,Liidien_tiedot[Painotettu \nEnnuste])","v":{"v":310000,"d":"310,000.00 €"}}]

{"sheet":"Ennustettu myynti ","index":1,"n_rows":21,"n_cols":14,"rows_kept":21,"merged":[[3,12,3,13]]}
[null,{"$f":"Yrityksen_nimi","v":"Yrityksen nimi"}]
[null,"Ennustettu myynti"]
[null,{"$f":"Seurantapäivä","v":"2022-04-08"}]
[{"$nulls":11},{"$f":"Yrityksen_nimi","v":"Yrityksen nimi"},"LUOTTAMUKSELLINEN"]
[null,"Liidin nimi","tammikuu \nEnnuste","helmikuu \nEnnuste","maaliskuu \nEnnuste","huhtikuu \nEnnuste","toukokuu \nEnnuste","kesäkuu \nEnnuste","Heinäkuun ennuste","elokuu \nEnnuste","syyskuu \nEnnuste","lokakuu \nEnnuste","marraskuu \nEnnuste","joulukuu \nEnnuste"]
[null,{"$f":"IFERROR(IF(AND(Liidien_tiedot[[#This Row],[Liidin nimi]] <> \"\", ROW(Ennustettu_myynti[Liidin nimi])<>Viimeinen_syöte),Liidien_tiedot[Liidin nimi], \"\"),\"\")","v":"A. Datum Corporation"},{"$f":"IFERROR(IF(Liidien_tiedot[[#This Row],[Ennuste \nSulje]] <>\"\",IF(Liidien_tiedot[[#This Row],[Ennuste \nSulje]]= \"tammikuu\",Liidien_tiedot[Painotettu \nEnnuste],0),\"\"),\"\")","v":{"v":270000,"d":"270,000 €"}},{"$f":"IFERROR(IF(Liidien_tiedot[[#This Row],[Ennuste \nSulje]] <>\"\",IF(Liidien_tiedot[[#This Row],[Ennuste \nSulje]] = \"Helmikuu\",Liidien_tiedot[Painotettu \nEnnuste],0),\"\"),\"\")","v":{"v":0,"d":"0 €"}},{"$f":"IFERROR(IF(Liidien_tiedot[[#This Row],[Ennuste \nSulje]] <>\"\",IF(Liidien_tiedot[[#This Row],[Ennuste \nSulje]] = \"maaliskuu\",Liidien_tiedot[Painotettu \nEnnuste],0),\"\"),\"\")","v":{"v":0,"d":"0 €"}},{"$f":"IFERROR(IF(Liidien_tiedot[[#This Row],[Ennuste \nSulje]] <>\"\",IF(Liidien_tiedot[[#This Row],[Ennuste \nSulje]] = \"huhtikuu\",Liidien_tiedot[Painotettu \nEnnuste],0),\"\"),\"\")","v":{"v":0,"d":"0 €"}},{"$f":"IFERROR(IF(Liidien_tiedot[[#This Row],[Ennuste \nSulje]] <>\"\",IF(Liidien_tiedot[[#This Row],[Ennuste \nSulje]] = \"toukokuu\",Liidien_tiedot[Painotettu \nEnnuste],0),\"\"),\"\")","v":{"v":0,"d":"0 €"}},{"$f":"IFERROR(IF(Liidien_tiedot[[#This Row],[Ennuste \nSulje]] <>\"\",IF(Liidien_tiedot[[#This Row],[Ennuste \nSulje]] = \"kesäkuu\",Liidien_tiedot[Painotettu \nEnnuste],0),\"\"),\"\")","v":{"v":0,"d":"0 €"}},{"$f":"IFERROR(IF(Liidien_tiedot[[#This Row],[Ennuste \nSulje]] <>\"\",IF(Liidien_tiedot[[#This Row],[Ennuste \nSulje]] = \"July\",Liidien_tiedot[Painotettu \nEnnuste],0),\"\"),\"\")","v":{"v":0,"d":"0 €"}},{"$f":"IFERROR(IF(Liidien_tiedot[[#This Row],[Ennuste \nSulje]] <>\"\",IF(Liidien_tiedot[[#This Row],[Ennuste \nSulje]] = \"elokuu\",Liidien_tiedot[Painotettu \nEnnuste],0),\"\"),\"\")","v":{"v":0,"d":"0 €"}},{"$f":"IFERROR(IF(Liidien_tiedot[[#This Row],[Ennuste \nSulje]] <>\"\",IF(Liidien_tiedot[[#This Row],[Ennuste \nSulje]] = \"syyskuu\",Liidien_tiedot[Painotettu \nEnnuste],0),\"\"),\"\")","v":{"v":0,"d":"0 €"}},{"$f":"IFERROR(IF(Liidien_tiedot[[#This Row],[Ennuste \nSulje]] <>\"\",IF(Liidien_tiedot[[#This Row],[Ennuste \nSulje]] = \"lokakuu\",Liidien_tiedot[Painotettu \nEnnuste],0),\"\"),\"\")","v":{"v":0,"d":"0 €"}},{"$f":"IFERROR(IF(Liidien_tiedot[[#This Row],[Ennuste \nSulje]] <>\"\",IF(Liidien_tiedot[[#This Row],[Ennuste \nSulje]] = \"marraskuu\",Liidien_tiedot[Painotettu \nEnnuste],0),\"\"),\"\")","v":{"v":0,"d":"0 €"}},{"$f":"IFERROR(IF(Liidien_tiedot[[#This Row],[Ennuste \nSulje]] <>\"\",IF(Liidien_tiedot[[#This Row],[Ennuste \nSulje]] = \"joulukuu\",Liidien_tiedot[Painotettu \nEnnuste],0),\"\"),\"\")","v":{"v":0,"d":"0 €"}}]
[null,{"$f":"IFERROR(IF(AND(Liidien_tiedot[[#This Row],[Liidin nimi]] <> \"\", ROW(Ennustettu_myynti[Liidin nimi])<>Viimeinen_syöte),Liidien_tiedot[Liidin nimi], \"\"),\"\")","v":"Adventure Works"},{"$f":"IFERROR(IF(Liidien_tiedot[[#This Row],[Ennuste \nSulje]] <>\"\",IF(Liidien_tiedot[[#This Row],[Ennuste \nSulje]]= \"tammikuu\",Liidien_tiedot[Painotettu \nEnnuste],0),\"\"),\"\")","v":{"v":0,"d":"0 €"}},{"$f":"IFERROR(IF(Liidien_tiedot[[#This Row],[Ennuste \nSulje]] <>\"\",IF(Liidien_tiedot[[#This Row],[Ennuste \nSulje]] = \"Helmikuu\",Liidien_tiedot[Painotettu \nEnnuste],0),\"\"),\"\")","v":{"v":20000,"d":"20,000 €"}},{"$f":"IFERROR(IF(Liidien_tiedot[[#This Row],[Ennuste \nSulje]] <>\"\",IF(Liidien_tiedot[[#This Row],[Ennuste \nSulje]] = \"maaliskuu\",Liidien_tiedot[Painotettu \nEnnuste],0),\"\"),\"\")","v":{"v":0,"d":"0 €"}},{"$f":"IFERROR(IF(Liidien_tiedot[[#This Row],[Ennuste \nSulje]] <>\"\",IF(Liidien_tiedot[[#This Row],[Ennuste \nSulje]] = \"huhtikuu\",Liidien_tiedot[Painotettu \nEnnuste],0),\"\"),\"\")","v":{"v":0,"d":"0 €"}},{"$f":"IFERROR(IF(Liidien_tiedot[[#This Row],[Ennuste \nSulje]] <>\"\",IF(Liidien_tiedot[[#This Row],[Ennuste \nSulje]] = \"toukokuu\",Liidien_tiedot[Painotettu \nEnnuste],0),\"\"),\"\")","v":{"v":0,"d":"0 €"}},{"$f":"IFERROR(IF(Liidien_tiedot[[#This Row],[Ennuste \nSulje]] <>\"\",IF(Liidien_tiedot[[#This Row],[Ennuste \nSulje]] = \"kesäkuu\",Liidien_tiedot[Painotettu \nEnnuste],0),\"\"),\"\")","v":{"v":0,"d":"0 €"}},{"$f":"IFERROR(IF(Liidien_tiedot[[#This Row],[Ennuste \nSulje]] <>\"\",IF(Liidien_tiedot[[#This Row],[Ennuste \nSulje]] = \"July\",Liidien_tiedot[Painotettu \nEnnuste],0),\"\"),\"\")","v":{"v":0,"d":"0 €"}},{"$f":"IFERROR(IF(Liidien_tiedot[[#This Row],[Ennuste \nSulje]] <>\"\",IF(Liidien_tiedot[[#This Row],[Ennuste \nSulje]] = \"elokuu\",Liidien_tiedot[Painotettu \nEnnuste],0),\"\"),\"\")","v":{"v":0,"d":"0 €"}},{"$f":"IFERROR(IF(Liidien_tiedot[[#This Row],[Ennuste \nSulje]] <>\"\",IF(Liidien_tiedot[[#This Row],[Ennuste \nSulje]] = \"syyskuu\",Liidien_tiedot[Painotettu \nEnnuste],0),\"\"),\"\")","v":{"v":0,"d":"0 €"}},{"$f":"IFERROR(IF(Liidien_tiedot[[#This Row],[Ennuste \nSulje]] <>\"\",IF(Liidien_tiedot[[#This Row],[Ennuste \nSulje]] = \"lokakuu\",Liidien_tiedot[Painotettu \nEnnuste],0),\"\"),\"\")","v":{"v":0,"d":"0 €"}},{"$f":"IFERROR(IF(Liidien_tiedot[[#This Row],[Ennuste \nSulje]] <>\"\",IF(Liidien_tiedot[[#This Row],[Ennuste \nSulje]] = \"marraskuu\",Liidien_tiedot[Painotettu \nEnnuste],0),\"\"),\"\")","v":{"v":0,"d":"0 €"}},{"$f":"IFERROR(IF(Liidien_tiedot[[#This Row],[Ennuste \nSulje]] <>\"\",IF(Liidien_tiedot[[#This Row],[Ennuste \nSulje]] = \"joulukuu\",Liidien_tiedot[Painotettu \nEnnuste],0),\"\"),\"\")","v":{"v":0,"d":"0 €"}}]
[null,{"$f":"IFERROR(IF(AND(Liidien_tiedot[[#This Row],[Liidin nimi]] <> \"\", ROW(Ennustettu_myynti[Liidin nimi])<>Viimeinen_syöte),Liidien_tiedot[Liidin nimi], \"\"),\"\")","v":"Alpine Ski House"},{"$f":"IFERROR(IF(Liidien_tiedot[[#This Row],[Ennuste \nSulje]] <>\"\",IF(Liidien_tiedot[[#This Row],[Ennuste \nSulje]]= \"tammikuu\",Liidien_tiedot[Painotettu \nEnnuste],0),\"\"),\"\")","v":{"v":0,"d":"0 €"}},{"$f":"IFERROR(IF(Liidien_tiedot[[#This Row],[Ennuste \nSulje]] <>\"\",IF(Liidien_tiedot[[#This Row],[Ennuste \nSulje]] = \"Helmikuu\",Liidien_tiedot[Painotettu \nEnnuste],0),\"\"),\"\")","v":{"v":0,"d":"0 €"}},{"$f":"IFERROR(IF(Liidien_tiedot[[#This Row],[Ennuste \nSulje]] <>\"\",IF(Liidien_tiedot[[#This Row],[Ennuste \nSulje]] = \"maaliskuu\",Liidien_tiedot[Painotettu \nEnnuste],0),\"\"),\"\")","v":{"v":20000,"d":"20,000 €"}},{"$f":"IFERROR(IF(Liidien_tiedot[[#This Row],[Ennuste \nSulje]] <>\"\",IF(Liidien_tiedot[[#This Row],[Ennuste \nSulje]] = \"huhtikuu\",Liidien_tiedot[Painotettu \nEnnuste],0),\"\"),\"\")","v":{"v":0,"d":"0 €"}},{"$f":"IFERROR(IF(Liidien_tiedot[[#This Row],[Ennuste \nSulje]] <>\"\",IF(Liidien_tiedot[[#This Row],[Ennuste \nSulje]] = \"toukokuu\",Liidien_tiedot[Painotettu \nEnnuste],0),\"\"),\"\")","v":{"v":0,"d":"0 €"}},{"$f":"IFERROR(IF(Liidien_tiedot[[#This Row],[Ennuste \nSulje]] <>\"\",IF(Liidien_tiedot[[#This Row],[Ennuste \nSulje]] = \"kesäkuu\",Liidien_tiedot[Painotettu \nEnnuste],0),\"\"),\"\")","v":{"v":0,"d":"0 €"}},{"$f":"IFERROR(IF(Liidien_tiedot[[#This Row],[Ennuste \nSulje]] <>\"\",IF(Liidien_tiedot[[#This Row],[Ennuste \nSulje]] = \"July\",Liidien_tiedot[Painotettu \nEnnuste],0),\"\"),\"\")","v":{"v":0,"d":"0 €"}},{"$f":"IFERROR(IF(Liidien_tiedot[[#This Row],[Ennuste \nSulje]] <>\"\",IF(Liidien_tiedot[[#This Row],[Ennuste \nSulje]] = \"elokuu\",Liidien_tiedot[Painotettu \nEnnuste],0),\"\"),\"\")","v":{"v":0,"d":"0 €"}},{"$f":"IFERROR(IF(Liidien_tiedot[[#This Row],[Ennuste \nSulje]] <>\"\",IF(Liidien_tiedot[[#This Row],[Ennuste \nSulje]] = \"syyskuu\",Liidien_tiedot[Painotettu \nEnnuste],0),\"\"),\"\")","v":{"v":0,"d":"0 €"}},{"$f":"IFERROR(IF(Liidien_tiedot[[#This Row],[Ennuste \nSulje]] <>\"\",IF(Liidien_tiedot[[#This Row],[Ennuste \nSulje]] = \"lokakuu\",Liidien_tiedot[Painotettu \nEnnuste],0),\"\"),\"\")","v":{"v":0,"d":"0 €"}},{"$f":"IFERROR(IF(Liidien_tiedot[[#This Row],[Ennuste \nSulje]] <>\"\",IF(Liidien_tiedot[[#This Row],[Ennuste \nSulje]] = \"marraskuu\",Liidien_tiedot[Painotettu \nEnnuste],0),\"\"),\"\")","v":{"v":0,"d":"0 €"}},{"$f":"IFERROR(IF(Liidien_tiedot[[#This Row],[Ennuste \nSulje]] <>\"\",IF(Liidien_tiedot[[#This Row],[Ennuste \nSulje]] = \"joulukuu\",Liidien_tiedot[Painotettu \nEnnuste],0),\"\"),\"\")","v":{"v":0,"d":"0 €"}}]
[null,{"$f":"IFERROR(IF(AND(Liidien_tiedot[[#This Row],[Liidin nimi]] <> \"\", ROW(Ennustettu_myynti[Liidin nimi])<>Viimeinen_syöte),Liidien_tiedot[Liidin nimi], \"\"),\"\")","v":""},{"$f":"IFERROR(IF(Liidien_tiedot[[#This Row],[Ennuste \nSulje]] <>\"\",IF(Liidien_tiedot[[#This Row],[Ennuste \nSulje]]= \"tammikuu\",Liidien_tiedot[Painotettu \nEnnuste],0),\"\"),\"\")","v":""},{"$f":"IFERROR(IF(Liidien_tiedot[[#This Row],[Ennuste \nSulje]] <>\"\",IF(Liidien_tiedot[[#This Row],[Ennuste \nSulje]] = \"Helmikuu\",Liidien_tiedot[Painotettu \nEnnuste],0),\"\"),\"\")","v":""},{"$f":"IFERROR(IF(Liidien_tiedot[[#This Row],[Ennuste \nSulje]] <>\"\",IF(Liidien_tiedot[[#This Row],[Ennuste \nSulje]] = \"maaliskuu\",Liidien_tiedot[Painotettu \nEnnuste],0),\"\"),\"\")","v":""},{"$f":"IFERROR(IF(Liidien_tiedot[[#This Row],[Ennuste \nSulje]] <>\"\",IF(Liidien_tiedot[[#This Row],[Ennuste \nSulje]] = \"huhtikuu\",Liidien_tiedot[Painotettu \nEnnuste],0),\"\"),\"\")","v":""},{"$f":"IFERROR(IF(Liidien_tiedot[[#This Row],[Ennuste \nSulje]] <>\"\",IF(Liidien_tiedot[[#This Row],[Ennuste \nSulje]] = \"toukokuu\",Liidien_tiedot[Painotettu \nEnnuste],0),\"\"),\"\")","v":""},{"$f":"IFERROR(IF(Liidien_tiedot[[#This Row],[Ennuste \nSulje]] <>\"\",IF(Liidien_tiedot[[#This Row],[Ennuste \nSulje]] = \"kesäkuu\",Liidien_tiedot[Painotettu \nEnnuste],0),\"\"),\"\")","v":""},{"$f":"IFERROR(IF(Liidien_tiedot[[#This Row],[Ennuste \nSulje]] <>\"\",IF(Liidien_tiedot[[#This Row],[Ennuste \nSulje]] = \"July\",Liidien_tiedot[Painotettu \nEnnuste],0),\"\"),\"\")","v":""},{"$f":"IFERROR(IF(Liidien_tiedot[[#This Row],[Ennuste \nSulje]] <>\"\",IF(Liidien_tiedot[[#This Row],[Ennuste \nSulje]] = \"elokuu\",Liidien_tiedot[Painotettu \nEnnuste],0),\"\"),\"\")","v":""},{"$f":"IFERROR(IF(Liidien_tiedot[[#This Row],[Ennuste \nSulje]] <>\"\",IF(Liidien_tiedot[[#This Row],[Ennuste \nSulje]] = \"syyskuu\",Liidien_tiedot[Painotettu \nEnnuste],0),\"\"),\"\")","v":""},{"$f":"IFERROR(IF(Liidien_tiedot[[#This Row],[Ennuste \nSulje]] <>\"\",IF(Liidien_tiedot[[#This Row],[Ennuste \nSulje]] = \"lokakuu\",Liidien_tiedot[Painotettu \nEnnuste],0),\"\"),\"\")","v":""},{"$f":"IFERROR(IF(Liidien_tiedot[[#This Row],[Ennuste \nSulje]] <>\"\",IF(Liidien_tiedot[[#This Row],[Ennuste \nSulje]] = \"marraskuu\",Liidien_tiedot[Painotettu \nEnnuste],0),\"\"),\"\")","v":""},{"$f":"IFERROR(IF(Liidien_tiedot[[#This Row],[Ennuste \nSulje]] <>\"\",IF(Liidien_tiedot[[#This Row],[Ennuste \nSulje]] = \"joulukuu\",Liidien_tiedot[Painotettu \nEnnuste],0),\"\"),\"\")","v":""}]
[null,{"$f":"IFERROR(IF(AND(Liidien_tiedot[[#This Row],[Liidin nimi]] <> \"\", ROW(Ennustettu_myynti[Liidin nimi])<>Viimeinen_syöte),Liidien_tiedot[Liidin nimi], \"\"),\"\")","v":""},{"$f":"IFERROR(IF(Liidien_tiedot[[#This Row],[Ennuste \nSulje]] <>\"\",IF(Liidien_tiedot[[#This Row],[Ennuste \nSulje]]= \"tammikuu\",Liidien_tiedot[Painotettu \nEnnuste],0),\"\"),\"\")","v":""},{"$f":"IFERROR(IF(Liidien_tiedot[[#This Row],[Ennuste \nSulje]] <>\"\",IF(Liidien_tiedot[[#This Row],[Ennuste \nSulje]] = \"Helmikuu\",Liidien_tiedot[Painotettu \nEnnuste],0),\"\"),\"\")","v":""},{"$f":"IFERROR(IF(Liidien_tiedot[[#This Row],[Ennuste \nSulje]] <>\"\",IF(Liidien_tiedot[[#This Row],[Ennuste \nSulje]] = \"maaliskuu\",Liidien_tiedot[Painotettu \nEnnuste],0),\"\"),\"\")","v":""},{"$f":"IFERROR(IF(Liidien_tiedot[[#This Row],[Ennuste \nSulje]] <>\"\",IF(Liidien_tiedot[[#This Row],[Ennuste \nSulje]] = \"huhtikuu\",Liidien_tiedot[Painotettu \nEnnuste],0),\"\"),\"\")","v":""},{"$f":"IFERROR(IF(Liidien_tiedot[[#This Row],[Ennuste \nSulje]] <>\"\",IF(Liidien_tiedot[[#This Row],[Ennuste \nSulje]] = \"toukokuu\",Liidien_tiedot[Painotettu \nEnnuste],0),\"\"),\"\")","v":""},{"$f":"IFERROR(IF(Liidien_tiedot[[#This Row],[Ennuste \nSulje]] <>\"\",IF(Liidien_tiedot[[#This Row],[Ennuste \nSulje]] = \"kesäkuu\",Liidien_tiedot[Painotettu \nEnnuste],0),\"\"),\"\")","v":""},{"$f":"IFERROR(IF(Liidien_tiedot[[#This Row],[Ennuste \nSulje]] <>\"\",IF(Liidien_tiedot[[#This Row],[Ennuste \nSulje]] = \"July\",Liidien_tiedot[Painotettu \nEnnuste],0),\"\"),\"\")","v":""},{"$f":"IFERROR(IF(Liidien_tiedot[[#This Row],[Ennuste \nSulje]] <>\"\",IF(Liidien_tiedot[[#This Row],[Ennuste \nSulje]] = \"elokuu\",Liidien_tiedot[Painotettu \nEnnuste],0),\"\"),\"\")","v":""},{"$f":"IFERROR(IF(Liidien_tiedot[[#This Row],[Ennuste \nSulje]] <>\"\",IF(Liidien_tiedot[[#This Row],[Ennuste \nSulje]] = \"syyskuu\",Liidien_tiedot[Painotettu \nEnnuste],0),\"\"),\"\")","v":""},{"$f":"IFERROR(IF(Liidien_tiedot[[#This Row],[Ennuste \nSulje]] <>\"\",IF(Liidien_tiedot[[#This Row],[Ennuste \nSulje]] = \"lokakuu\",Liidien_tiedot[Painotettu \nEnnuste],0),\"\"),\"\")","v":""},{"$f":"IFERROR(IF(Liidien_tiedot[[#This Row],[Ennuste \nSulje]] <>\"\",IF(Liidien_tiedot[[#This Row],[Ennuste \nSulje]] = \"marraskuu\",Liidien_tiedot[Painotettu \nEnnuste],0),\"\"),\"\")","v":""},{"$f":"IFERROR(IF(Liidien_tiedot[[#This Row],[Ennuste \nSulje]] <>\"\",IF(Liidien_tiedot[[#This Row],[Ennuste \nSulje]] = \"joulukuu\",Liidien_tiedot[Painotettu \nEnnuste],0),\"\"),\"\")","v":""}]
[null,{"$f":"IFERROR(IF(AND(Liidien_tiedot[[#This Row],[Liidin nimi]] <> \"\", ROW(Ennustettu_myynti[Liidin nimi])<>Viimeinen_syöte),Liidien_tiedot[Liidin nimi], \"\"),\"\")","v":""},{"$f":"IFERROR(IF(Liidien_tiedot[[#This Row],[Ennuste \nSulje]] <>\"\",IF(Liidien_tiedot[[#This Row],[Ennuste \nSulje]]= \"tammikuu\",Liidien_tiedot[Painotettu \nEnnuste],0),\"\"),\"\")","v":""},{"$f":"IFERROR(IF(Liidien_tiedot[[#This Row],[Ennuste \nSulje]] <>\"\",IF(Liidien_tiedot[[#This Row],[Ennuste \nSulje]] = \"Helmikuu\",Liidien_tiedot[Painotettu \nEnnuste],0),\"\"),\"\")","v":""},{"$f":"IFERROR(IF(Liidien_tiedot[[#This Row],[Ennuste \nSulje]] <>\"\",IF(Liidien_tiedot[[#This Row],[Ennuste \nSulje]] = \"maaliskuu\",Liidien_tiedot[Painotettu \nEnnuste],0),\"\"),\"\")","v":""},{"$f":"IFERROR(IF(Liidien_tiedot[[#This Row],[Ennuste \nSulje]] <>\"\",IF(Liidien_tiedot[[#This Row],[Ennuste \nSulje]] = \"huhtikuu\",Liidien_tiedot[Painotettu \nEnnuste],0),\"\"),\"\")","v":""},{"$f":"IFERROR(IF(Liidien_tiedot[[#This Row],[Ennuste \nSulje]] <>\"\",IF(Liidien_tiedot[[#This Row],[Ennuste \nSulje]] = \"toukokuu\",Liidien_tiedot[Painotettu \nEnnuste],0),\"\"),\"\")","v":""},{"$f":"IFERROR(IF(Liidien_tiedot[[#This Row],[Ennuste \nSulje]] <>\"\",IF(Liidien_tiedot[[#This Row],[Ennuste \nSulje]] = \"kesäkuu\",Liidien_tiedot[Painotettu \nEnnuste],0),\"\"),\"\")","v":""},{"$f":"IFERROR(IF(Liidien_tiedot[[#This Row],[Ennuste \nSulje]] <>\"\",IF(Liidien_tiedot[[#This Row],[Ennuste \nSulje]] = \"July\",Liidien_tiedot[Painotettu \nEnnuste],0),\"\"),\"\")","v":""},{"$f":"IFERROR(IF(Liidien_tiedot[[#This Row],[Ennuste \nSulje]] <>\"\",IF(Liidien_tiedot[[#This Row],[Ennuste \nSulje]] = \"elokuu\",Liidien_tiedot[Painotettu \nEnnuste],0),\"\"),\"\")","v":""},{"$f":"IFERROR(IF(Liidien_tiedot[[#This Row],[Ennuste \nSulje]] <>\"\",IF(Liidien_tiedot[[#This Row],[Ennuste \nSulje]] = \"syyskuu\",Liidien_tiedot[Painotettu \nEnnuste],0),\"\"),\"\")","v":""},{"$f":"IFERROR(IF(Liidien_tiedot[[#This Row],[Ennuste \nSulje]] <>\"\",IF(Liidien_tiedot[[#This Row],[Ennuste \nSulje]] = \"lokakuu\",Liidien_tiedot[Painotettu \nEnnuste],0),\"\"),\"\")","v":""},{"$f":"IFERROR(IF(Liidien_tiedot[[#This Row],[Ennuste \nSulje]] <>\"\",IF(Liidien_tiedot[[#This Row],[Ennuste \nSulje]] = \"marraskuu\",Liidien_tiedot[Painotettu \nEnnuste],0),\"\"),\"\")","v":""},{"$f":"IFERROR(IF(Liidien_tiedot[[#This Row],[Ennuste \nSulje]] <>\"\",IF(Liidien_tiedot[[#This Row],[Ennuste \nSulje]] = \"joulukuu\",Liidien_tiedot[Painotettu \nEnnuste],0),\"\"),\"\")","v":""}]
[null,{"$f":"IFERROR(IF(AND(Liidien_tiedot[[#This Row],[Liidin nimi]] <> \"\", ROW(Ennustettu_myynti[Liidin nimi])<>Viimeinen_syöte),Liidien_tiedot[Liidin nimi], \"\"),\"\")","v":""},{"$f":"IFERROR(IF(Liidien_tiedot[[#This Row],[Ennuste \nSulje]] <>\"\",IF(Liidien_tiedot[[#This Row],[Ennuste \nSulje]]= \"tammikuu\",Liidien_tiedot[Painotettu \nEnnuste],0),\"\"),\"\")","v":""},{"$f":"IFERROR(IF(Liidien_tiedot[[#This Row],[Ennuste \nSulje]] <>\"\",IF(Liidien_tiedot[[#This Row],[Ennuste \nSulje]] = \"Helmikuu\",Liidien_tiedot[Painotettu \nEnnuste],0),\"\"),\"\")","v":""},{"$f":"IFERROR(IF(Liidien_tiedot[[#This Row],[Ennuste \nSulje]] <>\"\",IF(Liidien_tiedot[[#This Row],[Ennuste \nSulje]] = \"maaliskuu\",Liidien_tiedot[Painotettu \nEnnuste],0),\"\"),\"\")","v":""},{"$f":"IFERROR(IF(Liidien_tiedot[[#This Row],[Ennuste \nSulje]] <>\"\",IF(Liidien_tiedot[[#This Row],[Ennuste \nSulje]] = \"huhtikuu\",Liidien_tiedot[Painotettu \nEnnuste],0),\"\"),\"\")","v":""},{"$f":"IFERROR(IF(Liidien_tiedot[[#This Row],[Ennuste \nSulje]] <>\"\",IF(Liidien_tiedot[[#This Row],[Ennuste \nSulje]] = \"toukokuu\",Liidien_tiedot[Painotettu \nEnnuste],0),\"\"),\"\")","v":""},{"$f":"IFERROR(IF(Liidien_tiedot[[#This Row],[Ennuste \nSulje]] <>\"\",IF(Liidien_tiedot[[#This Row],[Ennuste \nSulje]] = \"kesäkuu\",Liidien_tiedot[Painotettu \nEnnuste],0),\"\"),\"\")","v":""},{"$f":"IFERROR(IF(Liidien_tiedot[[#This Row],[Ennuste \nSulje]] <>\"\",IF(Liidien_tiedot[[#This Row],[Ennuste \nSulje]] = \"July\",Liidien_tiedot[Painotettu \nEnnuste],0),\"\"),\"\")","v":""},{"$f":"IFERROR(IF(Liidien_tiedot[[#This Row],[Ennuste \nSulje]] <>\"\",IF(Liidien_tiedot[[#This Row],[Ennuste \nSulje]] = \"elokuu\",Liidien_tiedot[Painotettu \nEnnuste],0),\"\"),\"\")","v":""},{"$f":"IFERROR(IF(Liidien_tiedot[[#This Row],[Ennuste \nSulje]] <>\"\",IF(Liidien_tiedot[[#This Row],[Ennuste \nSulje]] = \"syyskuu\",Liidien_tiedot[Painotettu \nEnnuste],0),\"\"),\"\")","v":""},{"$f":"IFERROR(IF(Liidien_tiedot[[#This Row],[Ennuste \nSulje]] <>\"\",IF(Liidien_tiedot[[#This Row],[Ennuste \nSulje]] = \"lokakuu\",Liidien_tiedot[Painotettu \nEnnuste],0),\"\"),\"\")","v":""},{"$f":"IFERROR(IF(Liidien_tiedot[[#This Row],[Ennuste \nSulje]] <>\"\",IF(Liidien_tiedot[[#This Row],[Ennuste \nSulje]] = \"marraskuu\",Liidien_tiedot[Painotettu \nEnnuste],0),\"\"),\"\")","v":""},{"$f":"IFERROR(IF(Liidien_tiedot[[#This Row],[Ennuste \nSulje]] <>\"\",IF(Liidien_tiedot[[#This Row],[Ennuste \nSulje]] = \"joulukuu\",Liidien_tiedot[Painotettu \nEnnuste],0),\"\"),\"\")","v":""}]
[null,{"$f":"IFERROR(IF(AND(Liidien_tiedot[[#This Row],[Liidin nimi]] <> \"\", ROW(Ennustettu_myynti[Liidin nimi])<>Viimeinen_syöte),Liidien_tiedot[Liidin nimi], \"\"),\"\")","v":""},{"$f":"IFERROR(IF(Liidien_tiedot[[#This Row],[Ennuste \nSulje]] <>\"\",IF(Liidien_tiedot[[#This Row],[Ennuste \nSulje]]= \"tammikuu\",Liidien_tiedot[Painotettu \nEnnuste],0),\"\"),\"\")","v":""},{"$f":"IFERROR(IF(Liidien_tiedot[[#This Row],[Ennuste \nSulje]] <>\"\",IF(Liidien_tiedot[[#This Row],[Ennuste \nSulje]] = \"Helmikuu\",Liidien_tiedot[Painotettu \nEnnuste],0),\"\"),\"\")","v":""},{"$f":"IFERROR(IF(Liidien_tiedot[[#This Row],[Ennuste \nSulje]] <>\"\",IF(Liidien_tiedot[[#This Row],[Ennuste \nSulje]] = \"maaliskuu\",Liidien_tiedot[Painotettu \nEnnuste],0),\"\"),\"\")","v":""},{"$f":"IFERROR(IF(Liidien_tiedot[[#This Row],[Ennuste \nSulje]] <>\"\",IF(Liidien_tiedot[[#This Row],[Ennuste \nSulje]] = \"huhtikuu\",Liidien_tiedot[Painotettu \nEnnuste],0),\"\"),\"\")","v":""},{"$f":"IFERROR(IF(Liidien_tiedot[[#This Row],[Ennuste \nSulje]] <>\"\",IF(Liidien_tiedot[[#This Row],[Ennuste \nSulje]] = \"toukokuu\",Liidien_tiedot[Painotettu \nEnnuste],0),\"\"),\"\")","v":""},{"$f":"IFERROR(IF(Liidien_tiedot[[#This Row],[Ennuste \nSulje]] <>\"\",IF(Liidien_tiedot[[#This Row],[Ennuste \nSulje]] = \"kesäkuu\",Liidien_tiedot[Painotettu \nEnnuste],0),\"\"),\"\")","v":""},{"$f":"IFERROR(IF(Liidien_tiedot[[#This Row],[Ennuste \nSulje]] <>\"\",IF(Liidien_tiedot[[#This Row],[Ennuste \nSulje]] = \"July\",Liidien_tiedot[Painotettu \nEnnuste],0),\"\"),\"\")","v":""},{"$f":"IFERROR(IF(Liidien_tiedot[[#This Row],[Ennuste \nSulje]] <>\"\",IF(Liidien_tiedot[[#This Row],[Ennuste \nSulje]] = \"elokuu\",Liidien_tiedot[Painotettu \nEnnuste],0),\"\"),\"\")","v":""},{"$f":"IFERROR(IF(Liidien_tiedot[[#This Row],[Ennuste \nSulje]] <>\"\",IF(Liidien_tiedot[[#This Row],[Ennuste \nSulje]] = \"syyskuu\",Liidien_tiedot[Painotettu \nEnnuste],0),\"\"),\"\")","v":""},{"$f":"IFERROR(IF(Liidien_tiedot[[#This Row],[Ennuste \nSulje]] <>\"\",IF(Liidien_tiedot[[#This Row],[Ennuste \nSulje]] = \"lokakuu\",Liidien_tiedot[Painotettu \nEnnuste],0),\"\"),\"\")","v":""},{"$f":"IFERROR(IF(Liidien_tiedot[[#This Row],[Ennuste \nSulje]] <>\"\",IF(Liidien_tiedot[[#This Row],[Ennuste \nSulje]] = \"marraskuu\",Liidien_tiedot[Painotettu \nEnnuste],0),\"\"),\"\")","v":""},{"$f":"IFERROR(IF(Liidien_tiedot[[#This Row],[Ennuste \nSulje]] <>\"\",IF(Liidien_tiedot[[#This Row],[Ennuste \nSulje]] = \"joulukuu\",Liidien_tiedot[Painotettu \nEnnuste],0),\"\"),\"\")","v":""}]
[null,{"$f":"IFERROR(IF(AND(Liidien_tiedot[[#This Row],[Liidin nimi]] <> \"\", ROW(Ennustettu_myynti[Liidin nimi])<>Viimeinen_syöte),Liidien_tiedot[Liidin nimi], \"\"),\"\")","v":""},{"$f":"IFERROR(IF(Liidien_tiedot[[#This Row],[Ennuste \nSulje]] <>\"\",IF(Liidien_tiedot[[#This Row],[Ennuste \nSulje]]= \"tammikuu\",Liidien_tiedot[Painotettu \nEnnuste],0),\"\"),\"\")","v":""},{"$f":"IFERROR(IF(Liidien_tiedot[[#This Row],[Ennuste \nSulje]] <>\"\",IF(Liidien_tiedot[[#This Row],[Ennuste \nSulje]] = \"Helmikuu\",Liidien_tiedot[Painotettu \nEnnuste],0),\"\"),\"\")","v":""},{"$f":"IFERROR(IF(Liidien_tiedot[[#This Row],[Ennuste \nSulje]] <>\"\",IF(Liidien_tiedot[[#This Row],[Ennuste \nSulje]] = \"maaliskuu\",Liidien_tiedot[Painotettu \nEnnuste],0),\"\"),\"\")","v":""},{"$f":"IFERROR(IF(Liidien_tiedot[[#This Row],[Ennuste \nSulje]] <>\"\",IF(Liidien_tiedot[[#This Row],[Ennuste \nSulje]] = \"huhtikuu\",Liidien_tiedot[Painotettu \nEnnuste],0),\"\"),\"\")","v":""},{"$f":"IFERROR(IF(Liidien_tiedot[[#This Row],[Ennuste \nSulje]] <>\"\",IF(Liidien_tiedot[[#This Row],[Ennuste \nSulje]] = \"toukokuu\",Liidien_tiedot[Painotettu \nEnnuste],0),\"\"),\"\")","v":""},{"$f":"IFERROR(IF(Liidien_tiedot[[#This Row],[Ennuste \nSulje]] <>\"\",IF(Liidien_tiedot[[#This Row],[Ennuste \nSulje]] = \"kesäkuu\",Liidien_tiedot[Painotettu \nEnnuste],0),\"\"),\"\")","v":""},{"$f":"IFERROR(IF(Liidien_tiedot[[#This Row],[Ennuste \nSulje]] <>\"\",IF(Liidien_tiedot[[#This Row],[Ennuste \nSulje]] = \"July\",Liidien_tiedot[Painotettu \nEnnuste],0),\"\"),\"\")","v":""},{"$f":"IFERROR(IF(Liidien_tiedot[[#This Row],[Ennuste \nSulje]] <>\"\",IF(Liidien_tiedot[[#This Row],[Ennuste \nSulje]] = \"elokuu\",Liidien_tiedot[Painotettu \nEnnuste],0),\"\"),\"\")","v":""},{"$f":"IFERROR(IF(Liidien_tiedot[[#This Row],[Ennuste \nSulje]] <>\"\",IF(Liidien_tiedot[[#This Row],[Ennuste \nSulje]] = \"syyskuu\",Liidien_tiedot[Painotettu \nEnnuste],0),\"\"),\"\")","v":""},{"$f":"IFERROR(IF(Liidien_tiedot[[#This Row],[Ennuste \nSulje]] <>\"\",IF(Liidien_tiedot[[#This Row],[Ennuste \nSulje]] = \"lokakuu\",Liidien_tiedot[Painotettu \nEnnuste],0),\"\"),\"\")","v":""},{"$f":"IFERROR(IF(Liidien_tiedot[[#This Row],[Ennuste \nSulje]] <>\"\",IF(Liidien_tiedot[[#This Row],[Ennuste \nSulje]] = \"marraskuu\",Liidien_tiedot[Painotettu \nEnnuste],0),\"\"),\"\")","v":""},{"$f":"IFERROR(IF(Liidien_tiedot[[#This Row],[Ennuste \nSulje]] <>\"\",IF(Liidien_tiedot[[#This Row],[Ennuste \nSulje]] = \"joulukuu\",Liidien_tiedot[Painotettu \nEnnuste],0),\"\"),\"\")","v":""}]
[null,{"$f":"IFERROR(IF(AND(Liidien_tiedot[[#This Row],[Liidin nimi]] <> \"\", ROW(Ennustettu_myynti[Liidin nimi])<>Viimeinen_syöte),Liidien_tiedot[Liidin nimi], \"\"),\"\")","v":""},{"$f":"IFERROR(IF(Liidien_tiedot[[#This Row],[Ennuste \nSulje]] <>\"\",IF(Liidien_tiedot[[#This Row],[Ennuste \nSulje]]= \"tammikuu\",Liidien_tiedot[Painotettu \nEnnuste],0),\"\"),\"\")","v":""},{"$f":"IFERROR(IF(Liidien_tiedot[[#This Row],[Ennuste \nSulje]] <>\"\",IF(Liidien_tiedot[[#This Row],[Ennuste \nSulje]] = \"Helmikuu\",Liidien_tiedot[Painotettu \nEnnuste],0),\"\"),\"\")","v":""},{"$f":"IFERROR(IF(Liidien_tiedot[[#This Row],[Ennuste \nSulje]] <>\"\",IF(Liidien_tiedot[[#This Row],[Ennuste \nSulje]] = \"maaliskuu\",Liidien_tiedot[Painotettu \nEnnuste],0),\"\"),\"\")","v":""},{"$f":"IFERROR(IF(Liidien_tiedot[[#This Row],[Ennuste \nSulje]] <>\"\",IF(Liidien_tiedot[[#This Row],[Ennuste \nSulje]] = \"huhtikuu\",Liidien_tiedot[Painotettu \nEnnuste],0),\"\"),\"\")","v":""},{"$f":"IFERROR(IF(Liidien_tiedot[[#This Row],[Ennuste \nSulje]] <>\"\",IF(Liidien_tiedot[[#This Row],[Ennuste \nSulje]] = \"toukokuu\",Liidien_tiedot[Painotettu \nEnnuste],0),\"\"),\"\")","v":""},{"$f":"IFERROR(IF(Liidien_tiedot[[#This Row],[Ennuste \nSulje]] <>\"\",IF(Liidien_tiedot[[#This Row],[Ennuste \nSulje]] = \"kesäkuu\",Liidien_tiedot[Painotettu \nEnnuste],0),\"\"),\"\")","v":""},{"$f":"IFERROR(IF(Liidien_tiedot[[#This Row],[Ennuste \nSulje]] <>\"\",IF(Liidien_tiedot[[#This Row],[Ennuste \nSulje]] = \"July\",Liidien_tiedot[Painotettu \nEnnuste],0),\"\"),\"\")","v":""},{"$f":"IFERROR(IF(Liidien_tiedot[[#This Row],[Ennuste \nSulje]] <>\"\",IF(Liidien_tiedot[[#This Row],[Ennuste \nSulje]] = \"elokuu\",Liidien_tiedot[Painotettu \nEnnuste],0),\"\"),\"\")","v":""},{"$f":"IFERROR(IF(Liidien_tiedot[[#This Row],[Ennuste \nSulje]] <>\"\",IF(Liidien_tiedot[[#This Row],[Ennuste \nSulje]] = \"syyskuu\",Liidien_tiedot[Painotettu \nEnnuste],0),\"\"),\"\")","v":""},{"$f":"IFERROR(IF(Liidien_tiedot[[#This Row],[Ennuste \nSulje]] <>\"\",IF(Liidien_tiedot[[#This Row],[Ennuste \nSulje]] = \"lokakuu\",Liidien_tiedot[Painotettu \nEnnuste],0),\"\"),\"\")","v":""},{"$f":"IFERROR(IF(Liidien_tiedot[[#This Row],[Ennuste \nSulje]] <>\"\",IF(Liidien_tiedot[[#This Row],[Ennuste \nSulje]] = \"marraskuu\",Liidien_tiedot[Painotettu \nEnnuste],0),\"\"),\"\")","v":""},{"$f":"IFERROR(IF(Liidien_tiedot[[#This Row],[Ennuste \nSulje]] <>\"\",IF(Liidien_tiedot[[#This Row],[Ennuste \nSulje]] = \"joulukuu\",Liidien_tiedot[Painotettu \nEnnuste],0),\"\"),\"\")","v":""}]
[null,{"$f":"IFERROR(IF(AND(Liidien_tiedot[[#This Row],[Liidin nimi]] <> \"\", ROW(Ennustettu_myynti[Liidin nimi])<>Viimeinen_syöte),Liidien_tiedot[Liidin nimi], \"\"),\"\")","v":""},{"$f":"IFERROR(IF(Liidien_tiedot[[#This Row],[Ennuste \nSulje]] <>\"\",IF(Liidien_tiedot[[#This Row],[Ennuste \nSulje]]= \"tammikuu\",Liidien_tiedot[Painotettu \nEnnuste],0),\"\"),\"\")","v":""},{"$f":"IFERROR(IF(Liidien_tiedot[[#This Row],[Ennuste \nSulje]] <>\"\",IF(Liidien_tiedot[[#This Row],[Ennuste \nSulje]] = \"Helmikuu\",Liidien_tiedot[Painotettu \nEnnuste],0),\"\"),\"\")","v":""},{"$f":"IFERROR(IF(Liidien_tiedot[[#This Row],[Ennuste \nSulje]] <>\"\",IF(Liidien_tiedot[[#This Row],[Ennuste \nSulje]] = \"maaliskuu\",Liidien_tiedot[Painotettu \nEnnuste],0),\"\"),\"\")","v":""},{"$f":"IFERROR(IF(Liidien_tiedot[[#This Row],[Ennuste \nSulje]] <>\"\",IF(Liidien_tiedot[[#This Row],[Ennuste \nSulje]] = \"huhtikuu\",Liidien_tiedot[Painotettu \nEnnuste],0),\"\"),\"\")","v":""},{"$f":"IFERROR(IF(Liidien_tiedot[[#This Row],[Ennuste \nSulje]] <>\"\",IF(Liidien_tiedot[[#This Row],[Ennuste \nSulje]] = \"toukokuu\",Liidien_tiedot[Painotettu \nEnnuste],0),\"\"),\"\")","v":""},{"$f":"IFERROR(IF(Liidien_tiedot[[#This Row],[Ennuste \nSulje]] <>\"\",IF(Liidien_tiedot[[#This Row],[Ennuste \nSulje]] = \"kesäkuu\",Liidien_tiedot[Painotettu \nEnnuste],0),\"\"),\"\")","v":""},{"$f":"IFERROR(IF(Liidien_tiedot[[#This Row],[Ennuste \nSulje]] <>\"\",IF(Liidien_tiedot[[#This Row],[Ennuste \nSulje]] = \"July\",Liidien_tiedot[Painotettu \nEnnuste],0),\"\"),\"\")","v":""},{"$f":"IFERROR(IF(Liidien_tiedot[[#This Row],[Ennuste \nSulje]] <>\"\",IF(Liidien_tiedot[[#This Row],[Ennuste \nSulje]] = \"elokuu\",Liidien_tiedot[Painotettu \nEnnuste],0),\"\"),\"\")","v":""},{"$f":"IFERROR(IF(Liidien_tiedot[[#This Row],[Ennuste \nSulje]] <>\"\",IF(Liidien_tiedot[[#This Row],[Ennuste \nSulje]] = \"syyskuu\",Liidien_tiedot[Painotettu \nEnnuste],0),\"\"),\"\")","v":""},{"$f":"IFERROR(IF(Liidien_tiedot[[#This Row],[Ennuste \nSulje]] <>\"\",IF(Liidien_tiedot[[#This Row],[Ennuste \nSulje]] = \"lokakuu\",Liidien_tiedot[Painotettu \nEnnuste],0),\"\"),\"\")","v":""},{"$f":"IFERROR(IF(Liidien_tiedot[[#This Row],[Ennuste \nSulje]] <>\"\",IF(Liidien_tiedot[[#This Row],[Ennuste \nSulje]] = \"marraskuu\",Liidien_tiedot[Painotettu \nEnnuste],0),\"\"),\"\")","v":""},{"$f":"IFERROR(IF(Liidien_tiedot[[#This Row],[Ennuste \nSulje]] <>\"\",IF(Liidien_tiedot[[#This Row],[Ennuste \nSulje]] = \"joulukuu\",Liidien_tiedot[Painotettu \nEnnuste],0),\"\"),\"\")","v":""}]
[null,{"$f":"IFERROR(IF(AND(Liidien_tiedot[[#This Row],[Liidin nimi]] <> \"\", ROW(Ennustettu_myynti[Liidin nimi])<>Viimeinen_syöte),Liidien_tiedot[Liidin nimi], \"\"),\"\")","v":""},{"$f":"IFERROR(IF(Liidien_tiedot[[#This Row],[Ennuste \nSulje]] <>\"\",IF(Liidien_tiedot[[#This Row],[Ennuste \nSulje]]= \"tammikuu\",Liidien_tiedot[Painotettu \nEnnuste],0),\"\"),\"\")","v":""},{"$f":"IFERROR(IF(Liidien_tiedot[[#This Row],[Ennuste \nSulje]] <>\"\",IF(Liidien_tiedot[[#This Row],[Ennuste \nSulje]] = \"Helmikuu\",Liidien_tiedot[Painotettu \nEnnuste],0),\"\"),\"\")","v":""},{"$f":"IFERROR(IF(Liidien_tiedot[[#This Row],[Ennuste \nSulje]] <>\"\",IF(Liidien_tiedot[[#This Row],[Ennuste \nSulje]] = \"maaliskuu\",Liidien_tiedot[Painotettu \nEnnuste],0),\"\"),\"\")","v":""},{"$f":"IFERROR(IF(Liidien_tiedot[[#This Row],[Ennuste \nSulje]] <>\"\",IF(Liidien_tiedot[[#This Row],[Ennuste \nSulje]] = \"huhtikuu\",Liidien_tiedot[Painotettu \nEnnuste],0),\"\"),\"\")","v":""},{"$f":"IFERROR(IF(Liidien_tiedot[[#This Row],[Ennuste \nSulje]] <>\"\",IF(Liidien_tiedot[[#This Row],[Ennuste \nSulje]] = \"toukokuu\",Liidien_tiedot[Painotettu \nEnnuste],0),\"\"),\"\")","v":""},{"$f":"IFERROR(IF(Liidien_tiedot[[#This Row],[Ennuste \nSulje]] <>\"\",IF(Liidien_tiedot[[#This Row],[Ennuste \nSulje]] = \"kesäkuu\",Liidien_tiedot[Painotettu \nEnnuste],0),\"\"),\"\")","v":""},{"$f":"IFERROR(IF(Liidien_tiedot[[#This Row],[Ennuste \nSulje]] <>\"\",IF(Liidien_tiedot[[#This Row],[Ennuste \nSulje]] = \"July\",Liidien_tiedot[Painotettu \nEnnuste],0),\"\"),\"\")","v":""},{"$f":"IFERROR(IF(Liidien_tiedot[[#This Row],[Ennuste \nSulje]] <>\"\",IF(Liidien_tiedot[[#This Row],[Ennuste \nSulje]] = \"elokuu\",Liidien_tiedot[Painotettu \nEnnuste],0),\"\"),\"\")","v":""},{"$f":"IFERROR(IF(Liidien_tiedot[[#This Row],[Ennuste \nSulje]] <>\"\",IF(Liidien_tiedot[[#This Row],[Ennuste \nSulje]] = \"syyskuu\",Liidien_tiedot[Painotettu \nEnnuste],0),\"\"),\"\")","v":""},{"$f":"IFERROR(IF(Liidien_tiedot[[#This Row],[Ennuste \nSulje]] <>\"\",IF(Liidien_tiedot[[#This Row],[Ennuste \nSulje]] = \"lokakuu\",Liidien_tiedot[Painotettu \nEnnuste],0),\"\"),\"\")","v":""},{"$f":"IFERROR(IF(Liidien_tiedot[[#This Row],[Ennuste \nSulje]] <>\"\",IF(Liidien_tiedot[[#This Row],[Ennuste \nSulje]] = \"marraskuu\",Liidien_tiedot[Painotettu \nEnnuste],0),\"\"),\"\")","v":""},{"$f":"IFERROR(IF(Liidien_tiedot[[#This Row],[Ennuste \nSulje]] <>\"\",IF(Liidien_tiedot[[#This Row],[Ennuste \nSulje]] = \"joulukuu\",Liidien_tiedot[Painotettu \nEnnuste],0),\"\"),\"\")","v":""}]
[null,{"$f":"IFERROR(IF(AND(Liidien_tiedot[[#This Row],[Liidin nimi]] <> \"\", ROW(Ennustettu_myynti[Liidin nimi])<>Viimeinen_syöte),Liidien_tiedot[Liidin nimi], \"\"),\"\")","v":""},{"$f":"IFERROR(IF(Liidien_tiedot[[#This Row],[Ennuste \nSulje]] <>\"\",IF(Liidien_tiedot[[#This Row],[Ennuste \nSulje]]= \"tammikuu\",Liidien_tiedot[Painotettu \nEnnuste],0),\"\"),\"\")","v":""},{"$f":"IFERROR(IF(Liidien_tiedot[[#This Row],[Ennuste \nSulje]] <>\"\",IF(Liidien_tiedot[[#This Row],[Ennuste \nSulje]] = \"Helmikuu\",Liidien_tiedot[Painotettu \nEnnuste],0),\"\"),\"\")","v":""},{"$f":"IFERROR(IF(Liidien_tiedot[[#This Row],[Ennuste \nSulje]] <>\"\",IF(Liidien_tiedot[[#This Row],[Ennuste \nSulje]] = \"maaliskuu\",Liidien_tiedot[Painotettu \nEnnuste],0),\"\"),\"\")","v":""},{"$f":"IFERROR(IF(Liidien_tiedot[[#This Row],[Ennuste \nSulje]] <>\"\",IF(Liidien_tiedot[[#This Row],[Ennuste \nSulje]] = \"huhtikuu\",Liidien_tiedot[Painotettu \nEnnuste],0),\"\"),\"\")","v":""},{"$f":"IFERROR(IF(Liidien_tiedot[[#This Row],[Ennuste \nSulje]] <>\"\",IF(Liidien_tiedot[[#This Row],[Ennuste \nSulje]] = \"toukokuu\",Liidien_tiedot[Painotettu \nEnnuste],0),\"\"),\"\")","v":""},{"$f":"IFERROR(IF(Liidien_tiedot[[#This Row],[Ennuste \nSulje]] <>\"\",IF(Liidien_tiedot[[#This Row],[Ennuste \nSulje]] = \"kesäkuu\",Liidien_tiedot[Painotettu \nEnnuste],0),\"\"),\"\")","v":""},{"$f":"IFERROR(IF(Liidien_tiedot[[#This Row],[Ennuste \nSulje]] <>\"\",IF(Liidien_tiedot[[#This Row],[Ennuste \nSulje]] = \"July\",Liidien_tiedot[Painotettu \nEnnuste],0),\"\"),\"\")","v":""},{"$f":"IFERROR(IF(Liidien_tiedot[[#This Row],[Ennuste \nSulje]] <>\"\",IF(Liidien_tiedot[[#This Row],[Ennuste \nSulje]] = \"elokuu\",Liidien_tiedot[Painotettu \nEnnuste],0),\"\"),\"\")","v":""},{"$f":"IFERROR(IF(Liidien_tiedot[[#This Row],[Ennuste \nSulje]] <>\"\",IF(Liidien_tiedot[[#This Row],[Ennuste \nSulje]] = \"syyskuu\",Liidien_tiedot[Painotettu \nEnnuste],0),\"\"),\"\")","v":""},{"$f":"IFERROR(IF(Liidien_tiedot[[#This Row],[Ennuste \nSulje]] <>\"\",IF(Liidien_tiedot[[#This Row],[Ennuste \nSulje]] = \"lokakuu\",Liidien_tiedot[Painotettu \nEnnuste],0),\"\"),\"\")","v":""},{"$f":"IFERROR(IF(Liidien_tiedot[[#This Row],[Ennuste \nSulje]] <>\"\",IF(Liidien_tiedot[[#This Row],[Ennuste \nSulje]] = \"marraskuu\",Liidien_tiedot[Painotettu \nEnnuste],0),\"\"),\"\")","v":""},{"$f":"IFERROR(IF(Liidien_tiedot[[#This Row],[Ennuste \nSulje]] <>\"\",IF(Liidien_tiedot[[#This Row],[Ennuste \nSulje]] = \"joulukuu\",Liidien_tiedot[Painotettu \nEnnuste],0),\"\"),\"\")","v":""}]
[null,{"$f":"IFERROR(IF(AND(Liidien_tiedot[[#This Row],[Liidin nimi]] <> \"\", ROW(Ennustettu_myynti[Liidin nimi])<>Viimeinen_syöte),Liidien_tiedot[Liidin nimi], \"\"),\"\")","v":""},{"$f":"IFERROR(IF(Liidien_tiedot[[#This Row],[Ennuste \nSulje]] <>\"\",IF(Liidien_tiedot[[#This Row],[Ennuste \nSulje]]= \"tammikuu\",Liidien_tiedot[Painotettu \nEnnuste],0),\"\"),\"\")","v":""},{"$f":"IFERROR(IF(Liidien_tiedot[[#This Row],[Ennuste \nSulje]] <>\"\",IF(Liidien_tiedot[[#This Row],[Ennuste \nSulje]] = \"Helmikuu\",Liidien_tiedot[Painotettu \nEnnuste],0),\"\"),\"\")","v":""},{"$f":"IFERROR(IF(Liidien_tiedot[[#This Row],[Ennuste \nSulje]] <>\"\",IF(Liidien_tiedot[[#This Row],[Ennuste \nSulje]] = \"maaliskuu\",Liidien_tiedot[Painotettu \nEnnuste],0),\"\"),\"\")","v":""},{"$f":"IFERROR(IF(Liidien_tiedot[[#This Row],[Ennuste \nSulje]] <>\"\",IF(Liidien_tiedot[[#This Row],[Ennuste \nSulje]] = \"huhtikuu\",Liidien_tiedot[Painotettu \nEnnuste],0),\"\"),\"\")","v":""},{"$f":"IFERROR(IF(Liidien_tiedot[[#This Row],[Ennuste \nSulje]] <>\"\",IF(Liidien_tiedot[[#This Row],[Ennuste \nSulje]] = \"toukokuu\",Liidien_tiedot[Painotettu \nEnnuste],0),\"\"),\"\")","v":""},{"$f":"IFERROR(IF(Liidien_tiedot[[#This Row],[Ennuste \nSulje]] <>\"\",IF(Liidien_tiedot[[#This Row],[Ennuste \nSulje]] = \"kesäkuu\",Liidien_tiedot[Painotettu \nEnnuste],0),\"\"),\"\")","v":""},{"$f":"IFERROR(IF(Liidien_tiedot[[#This Row],[Ennuste \nSulje]] <>\"\",IF(Liidien_tiedot[[#This Row],[Ennuste \nSulje]] = \"July\",Liidien_tiedot[Painotettu \nEnnuste],0),\"\"),\"\")","v":""},{"$f":"IFERROR(IF(Liidien_tiedot[[#This Row],[Ennuste \nSulje]] <>\"\",IF(Liidien_tiedot[[#This Row],[Ennuste \nSulje]] = \"elokuu\",Liidien_tiedot[Painotettu \nEnnuste],0),\"\"),\"\")","v":""},{"$f":"IFERROR(IF(Liidien_tiedot[[#This Row],[Ennuste \nSulje]] <>\"\",IF(Liidien_tiedot[[#This Row],[Ennuste \nSulje]] = \"syyskuu\",Liidien_tiedot[Painotettu \nEnnuste],0),\"\"),\"\")","v":""},{"$f":"IFERROR(IF(Liidien_tiedot[[#This Row],[Ennuste \nSulje]] <>\"\",IF(Liidien_tiedot[[#This Row],[Ennuste \nSulje]] = \"lokakuu\",Liidien_tiedot[Painotettu \nEnnuste],0),\"\"),\"\")","v":""},{"$f":"IFERROR(IF(Liidien_tiedot[[#This Row],[Ennuste \nSulje]] <>\"\",IF(Liidien_tiedot[[#This Row],[Ennuste \nSulje]] = \"marraskuu\",Liidien_tiedot[Painotettu \nEnnuste],0),\"\"),\"\")","v":""},{"$f":"IFERROR(IF(Liidien_tiedot[[#This Row],[Ennuste \nSulje]] <>\"\",IF(Liidien_tiedot[[#This Row],[Ennuste \nSulje]] = \"joulukuu\",Liidien_tiedot[Painotettu \nEnnuste],0),\"\"),\"\")","v":""}]
[null,"Summa",{"$f":"SUBTOTAL(109,Ennustettu_myynti[tammikuu \nEnnuste])","v":{"v":270000,"d":"270,000 €"}},{"$f":"SUBTOTAL(109,Ennustettu_myynti[helmikuu \nEnnuste])","v":{"v":20000,"d":"20,000 €"}},{"$f":"SUBTOTAL(109,Ennustettu_myynti[maaliskuu \nEnnuste])","v":{"v":20000,"d":"20,000 €"}},{"$f":"SUBTOTAL(109,Ennustettu_myynti[huhtikuu \nEnnuste])","v":{"v":0,"d":"0 €"}},{"$f":"SUBTOTAL(109,Ennustettu_myynti[toukokuu \nEnnuste])","v":{"v":0,"d":"0 €"}},{"$f":"SUBTOTAL(109,Ennustettu_myynti[kesäkuu \nEnnuste])","v":{"v":0,"d":"0 €"}},{"$f":"SUBTOTAL(109,Ennustettu_myynti[Heinäkuun ennuste])","v":{"v":0,"d":"0 €"}},{"$f":"SUBTOTAL(109,Ennustettu_myynti[elokuu \nEnnuste])","v":{"v":0,"d":"0 €"}},{"$f":"SUBTOTAL(109,Ennustettu_myynti[syyskuu \nEnnuste])","v":{"v":0,"d":"0 €"}},{"$f":"SUBTOTAL(109,Ennustettu_myynti[lokakuu \nEnnuste])","v":{"v":0,"d":"0 €"}},{"$f":"SUBTOTAL(109,Ennustettu_myynti[marraskuu \nEnnuste])","v":{"v":0,"d":"0 €"}},{"$f":"SUBTOTAL(109,Ennustettu_myynti[joulukuu \nEnnuste])","v":{"v":0,"d":"0 €"}}]
[null,"Kumulatiivinen summa",{"$f":"C20","v":{"v":270000,"d":"270,000 €"}},{"$f":"C21+D20","v":{"v":290000,"d":"290,000 €"}},{"$f":"D21+E20","v":{"v":310000,"d":"310,000 €"}},{"$f":"E21+F20","v":{"v":310000,"d":"310,000 €"}},{"$f":"F21+G20","v":{"v":310000,"d":"310,000 €"}},{"$f":"G21+H20","v":{"v":310000,"d":"310,000 €"}},{"$f":"H21+I20","v":{"v":310000,"d":"310,000 €"}},{"$f":"I21+J20","v":{"v":310000,"d":"310,000 €"}},{"$f":"J21+K20","v":{"v":310000,"d":"310,000 €"}},{"$f":"K21+L20","v":{"v":310000,"d":"310,000 €"}},{"$f":"L21+M20","v":{"v":310000,"d":"310,000 €"}},{"$f":"M21+N20","v":{"v":310000,"d":"310,000 €"}}]

{"sheet":"Kuukausit. painotettu ennuste","index":2,"n_rows":3,"n_cols":2,"rows_kept":3}
[null,{"$f":"Yrityksen_nimi","v":"Yrityksen nimi"}]
[null,"Kuukausit. painotettu ennuste"]
[null," "]